bitfinex/quotes_ETHUSD_20251221
["timestamp","ask_amount","ask_price","bid_price","bid_amount"]
[1766328032872,7.3276,2966.0,2965.3,1.505]
[1766328033193,7.3276,2966.0,2965.2,3.332]
[1766328033194,2.479,2965.7,2965.2,3.332]
[1766328033491,9.8066,2965.5,2965.2,3.332]
[1766328034275,9.8066,2965.5,2964.8,7.061]
[1766328034676,9.8066,2965.4,2964.7,0.002]
[1766328034877,9.8066,2965.3,2964.8,0.555]
[1766328037390,0.406,2965.4,2964.9,7.061]
[1766328037770,0.406,2965.5,2964.9,7.061]
[1766328037970,8.1285,2965.5,2964.9,7.061]
[1766328038202,10.2224,2965.4,2964.9,7.061]
[1766328038368,10.2224,2965.4,2964.8,1.11]
[1766328038976,10.6284,2965.4,2964.8,1.11]
[1766328040380,10.6284,2965.4,2964.8,1.665]
[1766328041103,10.6284,2965.4,2964.8,5.03787744]
[1766328041401,0.406,2965.5,2964.9,7.061]
[1766328042172,10.6284,2965.5,2964.9,7.061]
[1766328043590,1.01347756,2965.8,2964.9,7.616]
[1766328043794,7.7225,2965.7,2964.9,0.555]
[1766328044003,1.01347756,2965.8,2965.2,7.061]
[1766328044199,0.406,2965.9,2965.4,7.061]
[1766328044513,10.6284,2965.9,2965.1,7.061]
[1766328045017,1.01337828,2966.1,2965.1,7.061]
[1766328045018,0.406,2966.0,2965.2,7.061]
[1766328045185,0.406,2966.0,2965.4,7.061]
[1766328045881,0.406,2966.0,2965.4,7.616]
[1766328046081,0.001,2966.2,2965.4,3.92720956]
[1766328046284,0.406,2966.1,2965.5,7.061]
[1766328046793,0.407,2966.2,2965.5,7.061]
[1766328047119,0.407,2966.2,2965.5,8.24580922]
[1766328047414,4.60762389,2965.9,2965.4,0.555]
[1766328047604,10.2224,2965.8,2965.4,0.555]
[1766328048513,4.60762389,2965.9,2965.4,1.11]
[1766328048818,4.60762389,2965.9,2965.4,8.171]
[1766328049728,0.406,2965.8,2965.4,8.171]
[1766328050091,1.01433378,2966.2,2965.5,6.655]
[1766328050514,0.406,2966.1,2965.5,6.655]
[1766328051420,0.001,2965.8,2965.5,6.655]
[1766328051728,0.001,2965.8,2965.5,7.21]
[1766328051948,0.001,2966.4,2965.6,6.653]
[1766328052100,0.407,2966.4,2965.8,6.653]
[1766328052298,0.001,2966.4,2965.8,6.653]
[1766328053111,10.2234,2967.0,2966.1,4.60762389]
[1766328053299,10.2234,2967.0,2966.2,6.653]
[1766328053502,12.66488976,2967.0,2966.2,6.653]
[1766328054005,12.66488976,2967.0,2966.2,10.02431307]
[1766328054339,12.66488976,2967.0,2966.2,6.653]
[1766328054638,2.4999,2966.8,2966.2,6.653]
[1766328054930,10.2224,2966.8,2966.2,6.653]
[1766328057703,10.6284,2966.9,2966.2,6.653]
[1766328057904,12.35565137,2966.9,2966.2,6.653]
[1766328058528,2.4999,2966.8,2966.2,6.653]
[1766328059545,2.4999,2966.8,2966.2,10.02431369]
[1766328059848,0.406,2966.9,2966.3,6.653]
[1766328060223,10.6284,2966.9,2966.3,6.653]
[1766328060632,10.2224,2966.7,2965.9,10.41865116]
[1766328060832,2.4999,2966.6,2966.0,3.3715382]
[1766328061039,2.4999,2966.6,2966.0,10.0245382]
[1766328061242,2.4999,2966.6,2966.1,6.653]
[1766328062455,2.4999,2966.6,2966.2,3.37130759]
[1766328063258,2.4999,2966.6,2966.1,10.02440794]
[1766328064956,0.001,2966.8,2966.1,3.37140794]
[1766328065259,0.001,2966.8,2966.2,6.653]
[1766328065464,2.4296,2966.8,2966.2,6.653]
[1766328065867,10.005,2966.8,2966.2,6.653]
[1766328070084,10.005,2966.8,2966.2,10.02423113]
[1766328070566,10.005,2966.8,2966.3,6.653]
[1766328070768,0.001,2966.8,2966.3,11.65462389]
[1766328070946,0.001,2967.0,2966.4,6.652]
[1766328071976,2.4296,2967.0,2966.3,0.394]
[1766328072148,7.5754,2966.7,2966.3,0.394]
[1766328072348,2.4286,2966.6,2966.1,3.37141636]
[1766328072773,2.4286,2966.6,2966.2,3.37131498]
[1766328073143,2.4286,2966.6,2966.1,3.37135838]
[1766328073763,2.4286,2966.6,2966.2,3.3713042]
[1766328074349,2.4286,2966.6,2966.1,3.37143049]
[1766328074777,7.5754,2966.7,2966.1,3.37143049]
[1766328074973,10.41,2966.9,2966.1,10.02343049]
[1766328075183,2.00916702,2966.9,2966.2,6.652]
[1766328076453,2.00916702,2966.9,2966.3,6.652]
[1766328076674,10.005,2966.8,2966.2,3.37121759]
[1766328081490,0.001,2966.8,2966.3,6.652]
[1766328084884,0.001,2966.8,2966.3,10.02310754]
[1766328085098,0.001,2966.8,2966.4,6.652]
[1766328090679,0.001,2966.8,2966.3,3.37110754]
[1766328090881,3.88779381,2966.8,2966.3,3.37110754]
[1766328091305,3.88779381,2966.8,2966.1,6.74483884]
[1766328091476,3.88779381,2966.8,2966.2,6.652]
[1766328093609,3.88779381,2966.8,2966.2,10.02322322]
[1766328093979,3.88779381,2966.8,2966.3,6.652]
[1766328096311,11.17299381,2966.8,2966.3,6.652]
[1766328096811,1.11729938,2966.7,2966.2,3.37122322]
[1766328097011,9.9088,2966.7,2966.2,3.37122322]
[1766328097307,7.2852,2966.5,2966.1,0.002]
[1766328097505,2.6236,2966.1,2965.6,3.37199892]
[1766328097706,9.9088,2966.1,2965.6,10.02399892]
[1766328098496,2.6236,2966.1,2965.6,10.02399892]
[1766328099085,7.2852,2966.3,2965.6,10.02399892]
[1766328099409,9.9088,2966.3,2965.6,10.02399892]
[1766328100009,9.9088,2966.3,2966.1,0.002]
[1766328100184,1.45125769,2966.2,2966.1,0.002]
[1766328101993,11.36005769,2966.2,2965.7,3.37187887]
[1766328102194,7.2852,2966.1,2965.5,4.32407593]
[1766328102393,9.9088,2965.9,2965.5,0.557]
[1766328102594,9.9088,2965.9,2965.5,1.112]
[1766328102790,2.6236,2965.8,2965.5,1.112]
[1766328102995,9.9088,2965.8,2965.5,1.112]
[1766328104291,2.6236,2965.8,2965.5,1.112]
[1766328104487,9.9088,2966.0,2965.5,1.112]
[1766328104693,2.6236,2965.9,2965.5,1.112]
[1766328105015,9.9088,2965.9,2965.5,1.112]
[1766328105217,9.9088,2965.9,2965.5,1.667]
[1766328107706,1.45125769,2966.2,2965.5,5.03909581]
[1766328107899,10.3158,2966.4,2965.6,6.654]
[1766328108102,9.9088,2966.4,2965.6,7.049]
[1766328109818,9.9088,2966.4,2965.8,6.654]
[1766328113727,9.9088,2966.4,2965.8,6.656]
[1766328115220,9.9088,2966.4,2965.8,10.02775929]
[1766328116814,9.9088,2966.4,2965.8,3.37375929]
[1766328117727,9.9088,2966.4,2965.8,0.002]
[1766328117899,8.31678,2966.4,2965.8,0.002]
[1766328118099,10.94038,2966.4,2965.8,0.002]
[1766328119122,10.94038,2966.4,2965.8,6.6465]
[1766328120723,0.407,2966.5,2965.8,6.6465]
[1766328120724,10.92199346,2966.7,2965.9,6.6445]
[1766328121028,0.001,2966.8,2966.1,6.6445]
[1766328121197,9.9098,2966.8,2966.1,6.6445]
[1766328122208,0.001,2966.4,2966.1,6.6445]
[1766328122409,0.001,2966.4,2966.2,10.01581683]
[1766328122634,0.001,2966.4,2966.2,3.37131683]
[1766328122831,2.6246,2966.8,2966.1,3.37142962]
[1766328122832,0.001,2966.8,2966.3,6.6445]
[1766328124930,2.62,2966.8,2966.3,6.6445]
[1766328125130,10.4377,2966.8,2966.3,6.6445]
[1766328128109,0.001,2966.8,2966.3,6.6445]
[1766328128336,0.001,2966.8,2966.4,6.6435]
[1766328128905,0.001,2966.8,2966.1,3.37142435]
[1766328129134,0.001,2966.8,2966.2,6.6435]
[1766328129135,2.62,2966.8,2966.2,6.6435]
[1766328131112,10.4377,2966.8,2966.2,10.01478973]
[1766328131513,10.4377,2966.8,2966.3,6.6435]
[1766328133616,10.4367,2966.7,2966.1,3.37141462]
[1766328133816,10.4367,2966.7,2966.2,3.37131674]
[1766328134036,10.4367,2966.7,2966.3,3.37119774]
[1766328134537,2.619,2966.7,2966.3,3.37119774]
[1766328135815,2.619,2966.7,2966.2,6.6435]
[1766328136012,0.001,2967.0,2966.4,6.6425]
[1766328136216,10.4367,2966.9,2966.2,1.11119095]
[1766328136439,10.4367,2966.9,2966.3,6.6425]
[1766328137341,0.001,2967.0,2966.3,6.6425]
[1766328137840,0.001,2967.0,2966.4,3.37108953]
[1766328138144,0.001,2966.8,2966.5,6.6425]
[1766328138734,0.001,2966.8,2966.3,0.002]
[1766328138937,10.4377,2966.8,2966.3,0.002]
[1766328139542,10.4377,2966.8,2966.3,6.6445]
[1766328139743,10.4377,2966.8,2966.3,7.06167008]
[1766328140548,10.4377,2966.8,2966.3,10.43285371]
[1766328140922,2.619,2966.4,2966.3,0.002]
[1766328141241,0.408,2966.7,2966.0,0.396]
[1766328141434,10.4367,2966.5,2966.0,0.396]
[1766328142040,0.409,2966.8,2966.1,3.37141767]
[1766328142355,3.028,2966.8,2966.2,6.6445]
[1766328142650,0.3028,2966.7,2966.2,6.6445]
[1766328144135,0.3028,2966.7,2966.2,10.01579372]
[1766328144338,0.3028,2966.7,2966.2,6.6445]
[1766328144961,0.001,2966.8,2966.2,3.37128134]
[1766328145123,0.001,2966.8,2966.3,6.6445]
[1766328146068,0.001,2966.8,2966.3,10.01561416]
[1766328146222,10.018,2966.7,2966.0,0.396]
[1766328146423,10.018,2966.7,2966.2,10.01572524]
[1766328146656,2.4598,2966.7,2966.3,0.002]
[1766328147156,10.018,2966.6,2966.3,0.002]
[1766328148831,2.4598,2966.5,2966.0,0.396]
[1766328149048,10.018,2966.4,2966.0,0.396]
[1766328149246,10.018,2966.4,2966.0,3.76751625]
[1766328149569,10.018,2966.4,2966.0,3.37151625]
[1766328150573,10.018,2966.6,2966.0,3.37151625]
[1766328150873,1.0426,2966.5,2966.0,3.37151625]
[1766328153945,1.0426,2966.5,2965.9,6.6445]
[1766328154164,10.018,2966.6,2966.0,6.6465]
[1766328155073,10.018,2966.6,2966.0,6.6485]
[1766328155579,0.001,2966.5,2966.0,6.6485]
[1766328155783,9.858,2966.4,2966.0,0.002]
[1766328155946,2.5604,2966.3,2966.0,0.002]
[1766328157376,0.001,2966.5,2966.0,6.6465]
[1766328160677,1.01415925,2966.5,2966.0,6.6465]
[1766328162151,2.14217518,2966.5,2966.0,6.6485]
[1766328167516,0.001,2966.8,2966.4,4.5023]
[1766328167727,0.001,2966.8,2966.5,0.002]
[1766328168445,4.66321453,2967.2,2966.5,0.002]
[1766328168446,0.001,2968.0,2967.2,0.01684693]
[1766328168714,0.001,2968.2,2967.7,0.01684693]
[1766328168926,0.001,2968.2,2967.8,0.397]
[1766328169502,4.66221453,2969.0,2967.8,0.397]
[1766328169503,7.2976,2969.3,2967.9,0.01684693]
[1766328169826,6.26619598,2969.2,2967.9,1.53853798]
[1766328170026,9.858,2969.1,2967.9,1.02924714]
[1766328170235,11.1137504,2969.9,2967.9,1.02924714]
[1766328170236,9.858,2969.0,2968.0,4.66221453]
[1766328170429,9.858,2969.0,2968.0,3.36927223]
[1766328171130,0.408,2969.6,2968.7,4.66221453]
[1766328171431,0.408,2969.6,2968.8,0.397]
[1766328171432,0.35675002,2969.5,2968.8,0.397]
[1766328171639,0.35675002,2969.5,2968.9,0.397]
[1766328173242,4.66221453,2969.0,2967.5,0.01684693]
[1766328173437,0.46622145,2968.9,2968.0,3.36919972]
[1766328173607,0.408,2969.0,2968.2,1.01237971]
[1766328173802,0.001,2969.2,2968.6,4.66221453]
[1766328174030,0.001,2969.2,2968.7,0.397]
[1766328174232,0.001,2969.2,2968.8,4.66221453]
[1766328174536,0.001,2969.2,2968.7,0.397]
[1766328175941,0.001,2969.2,2968.7,7.13392864]
[1766328176130,0.001,2969.2,2968.8,0.71339286]
[1766328176308,0.001,2969.2,2968.8,0.73023979]
[1766328176713,0.001,2969.2,2968.9,3.36825086]
[1766328177344,9.858,2970.7,2968.9,3.36825086]
[1766328177515,9.858,2970.7,2968.8,0.73023979]
[1766328177516,7.2976,2970.2,2969.0,0.397]
[1766328177725,2.5604,2969.7,2969.0,0.397]
[1766328177930,9.858,2970.0,2969.0,0.397]
[1766328178513,9.858,2970.0,2969.0,1.4090655]
[1766328178714,9.858,2970.0,2969.1,3.36802398]
[1766328179330,9.858,2970.0,2969.0,1.4090655]
[1766328179644,1.058776,2969.9,2969.0,1.4090655]
[1766328180456,1.058776,2969.9,2969.0,0.397]
[1766328180761,1.058776,2969.9,2968.9,3.36821827]
[1766328180762,9.858,2969.6,2969.1,0.397]
[1766328181556,3.36804083,2970.0,2969.1,0.397]
[1766328181557,0.001,2970.0,2969.1,0.397]
[1766328181762,0.001,2970.0,2969.2,1.02879295]
[1766328182120,0.001,2970.0,2969.3,0.03367797]
[1766328182323,0.001,2970.0,2969.5,0.01684693]
[1766328182665,0.001,2970.0,2969.6,0.397]
[1766328182822,0.001,2970.0,2969.6,7.13186907]
[1766328183025,0.001,2970.0,2969.6,1.40889141]
[1766328183230,0.001,2970.0,2969.6,4.77630854]
[1766328183443,0.001,2970.0,2969.6,1.40889141]
[1766328184046,0.001,2970.0,2969.6,4.77632892]
[1766328184834,0.001,2970.0,2969.7,0.01684693]
[1766328185725,0.001,2970.0,2969.7,0.83460619]
[1766328187525,0.001,2970.0,2969.7,0.01684693]
[1766328188330,0.001,2970.0,2969.6,1.40889141]
[1766328192036,0.001,2970.0,2969.3,3.36770455]
[1766328192037,0.001,2970.0,2968.4,3.3856169]
[1766328192239,10.2295,2970.0,2969.3,1.01190847]
[1766328192562,10.2295,2970.0,2969.2,3.36788306]
[1766328192563,1.02295,2969.9,2969.2,3.36788306]
[1766328194041,0.001,2970.0,2969.3,3.3677882]
[1766328194637,0.001,2970.0,2969.2,3.3678631]
[1766328194844,0.001,2970.0,2969.1,1.40900064]
[1766328195068,10.2285,2969.9,2969.1,1.40900064]
[1766328195367,2.4634,2969.8,2969.1,0.397]
[1766328195563,0.24634,2969.7,2969.1,0.397]
[1766328196253,0.24634,2969.7,2969.1,0.399]
[1766328197780,2.4634,2969.8,2969.1,0.399]
[1766328197942,10.2285,2969.5,2969.1,0.399]
[1766328199270,7.14254549,2969.8,2968.7,1.01214404]
[1766328199566,2.4634,2969.4,2968.5,0.397]
[1766328199747,2.4634,2969.0,2968.5,0.397]
[1766328199954,10.2285,2969.0,2968.5,0.397]
[1766328200556,2.4634,2969.0,2968.5,0.397]
[1766328200757,7.7651,2969.2,2968.5,0.397]
[1766328200758,10.2285,2969.2,2968.5,0.397]
[1766328202478,1.02285,2969.1,2968.5,0.397]
[1766328203276,1.02285,2969.1,2968.5,3.76569876]
[1766328203442,1.02285,2969.1,2968.5,3.76769876]
[1766328204175,1.02285,2969.1,2968.6,0.399]
[1766328205380,0.001,2970.0,2968.8,0.399]
[1766328205549,11.64964404,2969.7,2968.8,0.399]
[1766328205748,11.64964404,2969.7,2968.9,0.397]
[1766328205978,11.64964404,2969.7,2968.9,0.796]
[1766328206772,10.2285,2969.6,2968.9,0.796]
[1766328207078,1.1649644,2969.5,2968.9,0.796]
[1766328208251,1.1649644,2969.5,2968.9,3.76522309]
[1766328208452,10.6375,2969.8,2969.0,0.399]
[1766328208781,11.64959282,2969.8,2969.0,0.399]
[1766328208945,11.64959282,2969.8,2969.1,0.03368023]
[1766328208946,1.01209282,2969.8,2969.1,0.03368023]
[1766328209150,10.2295,2970.0,2969.2,0.399]
[1766328209346,10.2285,2969.9,2969.2,0.399]
[1766328209573,11.25145,2969.8,2969.0,0.399]
[1766328209779,1.02295,2969.8,2968.9,3.76522309]
[1766328210093,10.2285,2969.6,2968.9,0.397]
[1766328210291,4.65338915,2969.9,2968.9,0.397]
[1766328210583,2.4634,2969.6,2968.9,4.16417838]
[1766328210753,0.409,2969.8,2968.9,4.16417838]
[1766328210954,1.42112355,2969.8,2968.9,0.796]
[1766328211155,8.53852355,2969.8,2968.9,3.76523221]
[1766328211354,11.55852355,2969.8,2969.0,0.399]
[1766328211553,1.62119127,2969.7,2969.0,0.399]
[1766328212089,2.63331482,2969.7,2969.0,0.399]
[1766328213654,1.62119127,2969.7,2969.0,0.399]
[1766328215110,3.36678993,2970.2,2969.0,0.399]
[1766328215111,0.17608309,2971.5,2969.7,0.01684693]
[1766328215282,0.17608309,2971.5,2970.0,0.01684693]
[1766328215283,13.07974858,2971.2,2970.0,0.01684693]
[1766328215479,9.7131,2971.1,2970.2,0.01684693]
[1766328215680,9.7131,2971.1,2970.2,0.41484693]
[1766328216207,9.7131,2971.1,2970.2,1.42651653]
[1766328216504,5.06338915,2971.2,2970.2,1.42651653]
[1766328216709,10.21943891,2971.1,2970.2,1.42651653]
[1766328217383,0.50633891,2971.1,2970.3,0.01684693]
[1766328217583,0.001,2971.2,2970.3,0.01684693]
[1766328217584,0.41,2971.2,2970.3,0.01684693]
[1766328218277,0.001,2971.2,2970.3,0.01684693]
[1766328218593,0.41,2971.1,2970.3,0.01684693]
[1766328218894,0.001,2971.1,2970.3,0.01684693]
[1766328219074,0.001,2971.1,2970.5,0.01684693]
[1766328222618,0.001,2971.1,2970.3,0.01684693]
[1766328223121,0.001,2972.3,2970.9,0.01684693]
[1766328223340,0.001,2972.3,2971.3,0.01684693]
[1766328223485,9.7141,2972.3,2971.0,0.398]
[1766328223887,9.7131,2972.2,2971.0,0.398]
[1766328224135,1.64429683,2972.1,2971.0,0.398]
[1766328224322,9.7131,2971.9,2971.0,0.398]
[1766328224522,9.7131,2971.9,2970.8,3.36606636]
[1766328224724,9.7131,2971.9,2970.7,0.796]
[1766328225604,0.001,2972.3,2971.0,0.01684693]
[1766328225930,10.1221,2972.2,2971.2,3.36564351]
[1766328226117,11.47094219,2972.2,2971.2,4.04047261]
[1766328226431,9.7131,2972.0,2970.8,0.01684693]
[1766328226623,9.7131,2972.0,2971.0,3.3658424]
[1766328227321,0.409,2971.9,2971.1,3.36569726]
[1766328227855,0.409,2971.9,2971.0,0.01684693]
[1766328228034,9.7131,2971.8,2970.7,3.76417615]
[1766328228332,0.409,2971.9,2970.8,0.37641762]
[1766328228333,9.7131,2971.6,2970.8,0.37641762]
[1766328228532,0.409,2971.5,2970.7,0.398]
[1766328228831,10.1221,2971.5,2970.5,3.36643047]
[1766328229742,0.409,2971.5,2970.6,3.36631699]
[1766328230740,0.001,2972.1,2970.5,6.73283965]
[1766328231037,9.7131,2971.9,2970.6,0.77611481]
[1766328231247,9.7131,2971.9,2970.8,0.01684693]
[1766328231814,9.7131,2971.9,2970.8,1.02817208]
[1766328232543,9.7131,2971.9,2970.9,3.36598337]
[1766328233241,4.74516936,2972.0,2970.8,3.38290963]
[1766328233442,9.7131,2971.8,2970.8,3.38290963]
[1766328233914,9.7131,2971.8,2970.8,3.3660627]
[1766328235012,9.7131,2971.8,2970.7,3.36620728]
[1766328235227,9.7131,2971.8,2970.7,6.73241726]
[1766328235523,0.409,2971.7,2970.7,6.73241726]
[1766328235714,1.46867169,2971.7,2970.7,7.58609484]
[1766328236107,0.409,2971.6,2970.7,7.58609484]
[1766328236741,0.409,2971.6,2970.7,4.21988486]
[1766328236907,0.409,2971.6,2970.5,4.37781039]
[1766328236908,9.7131,2971.5,2970.6,3.36629595]
[1766328237538,0.409,2971.6,2970.6,3.36629595]
[1766328237750,0.409,2971.6,2970.6,6.73261925]
[1766328238146,1.05967169,2971.7,2970.6,6.74946618]
[1766328238315,0.409,2971.5,2970.8,4.64536108]
[1766328239849,0.409,2971.5,2970.9,3.36598337]
[1766328240050,0.409,2971.5,2970.9,3.3996432]
[1766328240241,0.47561694,2971.9,2970.9,3.3996432]
[1766328240439,0.409,2971.8,2970.9,3.3996432]
[1766328240951,0.47561694,2971.9,2970.9,3.3996432]
[1766328241247,0.409,2971.8,2970.9,3.36598337]
[1766328242619,0.47561694,2971.9,2970.9,7.31320155]
[1766328242826,0.409,2971.8,2970.9,7.31320155]
[1766328243152,0.409,2971.8,2970.9,4.95846492]
[1766328243351,0.409,2971.8,2970.9,7.31320155]
[1766328244032,0.409,2971.8,2971.0,0.409]
[1766328244224,0.409,2971.8,2971.0,1.64744096]
[1766328244823,0.409,2971.8,2971.0,1.23844096]
[1766328245028,0.409,2971.8,2970.9,3.36592135]
[1766328245225,0.409,2971.8,2970.8,5.07320801]
[1766328245226,0.409,2971.8,2970.8,3.77704759]
[1766328245431,9.8815,2971.7,2970.9,3.3659147]
[1766328245747,9.8815,2971.7,2970.8,3.368065]
[1766328246647,9.8815,2971.7,2970.9,3.36598308]
[1766328246848,1.02905,2971.6,2970.8,0.002]
[1766328248328,10.91055,2971.6,2970.8,0.002]
[1766328248533,9.8815,2971.6,2970.8,0.002]
[1766328248732,0.409,2971.8,2970.8,0.002]
[1766328248733,7.4387,2971.7,2970.8,0.002]
[1766328248956,7.4387,2971.5,2970.8,0.002]
[1766328249146,0.74387,2971.4,2970.8,0.002]
[1766328249334,0.409,2971.3,2970.8,0.002]
[1766328252343,7.4387,2971.2,2970.8,0.002]
[1766328252645,9.8815,2971.2,2970.8,0.002]
[1766328252959,0.409,2971.3,2970.8,0.002]
[1766328253137,1.02905,2971.2,2970.8,0.002]
[1766328253337,10.2905,2971.3,2970.8,0.002]
[1766328254138,9.8815,2971.2,2970.8,0.002]
[1766328254339,7.4387,2971.1,2970.8,0.002]
[1766328254656,0.409,2971.3,2970.8,0.002]
[1766328254967,9.8815,2971.5,2970.8,0.002]
[1766328255169,1.73366944,2971.4,2970.8,0.002]
[1766328256139,0.409,2971.3,2970.8,0.002]
[1766328256545,0.409,2971.2,2970.8,0.002]
[1766328258451,0.001,2971.9,2971.1,4.64536108]
[1766328258647,0.409,2971.6,2970.8,4.64736108]
[1766328258852,0.409,2971.6,2970.9,0.46473611]
[1766328259053,0.409,2971.5,2971.0,3.36587007]
[1766328259252,0.409,2971.5,2971.0,6.73174014]
[1766328259751,0.409,2971.5,2971.0,3.36587007]
[1766328259950,0.409,2971.5,2971.1,0.72134152]
[1766328262262,0.409,2971.5,2971.1,4.0870962]
[1766328262461,0.409,2971.5,2971.1,0.72134152]
[1766328263474,0.409,2971.5,2971.1,4.08708421]
[1766328264678,0.001,2971.7,2971.1,4.08708421]
[1766328264855,0.409,2971.5,2971.2,0.40870842]
[1766328266352,0.409,2971.5,2971.2,3.77430629]
[1766328266580,0.409,2971.5,2971.2,0.40870842]
[1766328266969,0.001,2971.7,2971.2,3.77435193]
[1766328267178,0.001,2971.7,2971.2,7.15684237]
[1766328267356,0.001,2971.7,2971.3,1.3150396]
[1766328268080,0.001,2971.7,2971.3,1.18022034]
[1766328268271,0.001,2971.7,2971.2,0.40870842]
[1766328268468,0.001,2971.7,2971.3,3.3654652]
[1766328273077,0.001,2971.7,2971.2,3.77431405]
[1766328273471,0.001,2971.7,2971.2,7.13995756]
[1766328273888,0.001,2971.9,2971.3,0.01684693]
[1766328274176,0.41,2971.9,2971.5,0.01684693]
[1766328274384,0.41,2971.9,2971.4,0.75658045]
[1766328274879,0.41,2971.9,2971.4,4.12197173]
[1766328276079,0.41,2971.9,2971.4,0.75658045]
[1766328278091,10.2179,2971.9,2971.2,0.40870842]
[1766328278279,10.2179,2971.9,2971.0,1.01324674]
[1766328278475,0.409,2971.8,2971.1,4.66064884]
[1766328278784,0.409,2971.8,2971.2,3.36560875]
[1766328278990,0.409,2971.8,2971.2,3.36564351]
[1766328281269,0.409,2971.8,2971.2,4.0647508]
[1766328282262,0.001,2971.9,2971.2,4.0647508]
[1766328282263,0.409,2971.7,2971.2,4.0647508]
[1766328282473,0.409,2971.7,2971.2,7.43039431]
[1766328283782,0.409,2971.7,2971.2,4.0647508]
[1766328285801,0.409,2971.7,2971.2,7.43039431]
[1766328286208,0.409,2971.7,2971.2,4.0647508]
[1766328286792,0.41,2971.6,2971.2,4.0647508]
[1766328287365,0.41,2971.6,2971.3,0.74304852]
[1766328287766,0.41,2971.6,2971.3,4.10856331]
[1766328287966,0.41,2971.6,2971.3,0.74304852]
[1766328288167,0.41,2971.6,2971.3,4.1085765]
[1766328289996,0.41,2971.6,2971.3,0.74304852]
[1766328290307,0.41,2971.6,2971.2,3.36562281]
[1766328290806,0.41,2971.6,2971.1,3.36771057]
[1766328291203,0.41,2971.6,2971.1,0.002]
[1766328291383,0.41,2971.6,2971.2,3.36561132]
[1766328291704,0.41,2971.6,2971.3,0.33676113]
[1766328293081,0.41,2971.6,2971.3,3.70228806]
[1766328293586,0.41,2971.6,2971.3,0.33676113]
[1766328293785,0.41,2971.6,2971.3,3.70228129]
[1766328297002,0.41,2971.6,2971.3,3.70428129]
[1766328300516,0.41,2971.6,2971.3,0.33876113]
[1766328300700,0.41,2971.6,2971.3,0.002]
[1766328305323,0.41,2971.5,2971.3,0.002]
[1766328328876,0.41,2971.5,2970.8,0.01884693]
[1766328328877,9.3883,2971.3,2970.8,0.002]
[1766328329171,9.3883,2970.8,2970.1,0.002]
[1766328329379,1.81336756,2970.7,2970.1,0.002]
[1766328329739,1.81336756,2970.7,2970.1,0.01884693]
[1766328330048,0.41,2970.7,2970.1,0.01884693]
[1766328331372,0.41,2970.7,2970.2,3.36677664]
[1766328332366,0.41,2970.7,2970.2,6.73355328]
[1766328332664,0.41,2970.7,2970.2,3.36677664]
[1766328333268,9.3883,2970.9,2970.2,3.36677664]
[1766328333469,0.41,2970.8,2970.2,3.36677664]
[1766328335572,0.41,2970.8,2970.1,0.002]
[1766328338138,0.411,2970.7,2970.1,0.002]
[1766328338344,0.411,2971.0,2970.5,4.64748791]
[1766328338563,10.251,2971.7,2970.5,4.64748791]
[1766328338564,0.001,2971.7,2970.5,4.64748791]
[1766328338845,9.1857,2971.5,2970.6,0.01684693]
[1766328339046,0.411,2971.4,2970.6,0.01684693]
[1766328339245,0.411,2971.4,2970.7,6.73241996]
[1766328341157,0.411,2971.3,2970.7,6.73241996]
[1766328343654,0.411,2971.3,2970.7,3.36620998]
[1766328343856,9.5967,2971.3,2970.7,3.36620998]
[1766328344672,9.5967,2971.3,2970.6,3.3663233]
[1766328345070,0.411,2971.3,2970.6,3.3663233]
[1766328345400,6.8198,2971.0,2970.4,3.36647727]
[1766328345569,5.05848791,2971.3,2970.5,3.36642961]
[1766328345570,9.1857,2970.8,2970.5,3.36642961]
[1766328345770,0.001,2971.3,2970.5,6.73286623]
[1766328346072,0.411,2971.2,2970.5,14.73986623]
[1766328346279,0.411,2971.2,2970.5,11.37342961]
[1766328346683,0.411,2971.2,2970.5,14.73986623]
[1766328347899,9.5967,2971.2,2970.5,14.73986623]
[1766328348304,9.5967,2971.2,2970.6,8.1021]
[1766328348681,0.411,2971.1,2970.5,6.73286623]
[1766328348881,0.411,2971.1,2970.5,7.40615285]
[1766328349202,0.411,2971.1,2970.7,11.46440998]
[1766328353390,0.412,2971.1,2970.7,11.46440998]
[1766328354808,0.001,2971.1,2970.7,11.46440998]
[1766328355003,0.411,2971.0,2970.7,11.46440998]
[1766328360931,0.411,2971.0,2970.5,0.67328662]
[1766328360932,7.2308,2971.0,2970.3,0.01684693]
[1766328361128,9.1857,2970.6,2970.3,3.36656342]
[1766328361294,0.411,2970.6,2970.3,3.36656342]
[1766328361496,9.1857,2970.5,2970.3,3.36656342]
[1766328362046,6.8198,2970.4,2970.1,3.36879358]
[1766328362338,0.411,2970.6,2970.2,7.1921]
[1766328363296,2.7769,2970.6,2970.1,5.73469403]
[1766328363605,2.7769,2970.6,2970.1,16.29368403]
[1766328363788,0.411,2970.5,2970.1,12.92679403]
[1766328364192,0.411,2970.5,2970.1,7.1941]
[1766328364394,2.3659,2970.4,2970.1,3.36887032]
[1766328365205,2.3659,2970.4,2970.0,0.002]
[1766328365416,9.5989,2970.3,2970.0,0.002]
[1766328369140,0.411,2970.5,2970.0,0.002]